Workbook

Sheet Data
B1: Quick Proforma Data Sunlight Apts 11715 124 Street
B3: Building Data | H3: Investment Data
B4: Unit Type (br/ba) | C4: # of Units | D4: Avg Rent /Mo | E4: Total Annual Rent | H4: Purchase Price | I4: 3000000
B5: 1 br / 1 ba | C5: 6 | D5: 1150 | E5: =+C5*D5*12 -> 82800 | H5: Terminal Cap Rate | I5: 0.061
B6: 2 br / 1 ba | C6: 9 | D6: 1295 | E6: =+C6*D6*12 -> 139860 | H6: Cost of Sale EOY 5 | I6: 0.03
B7: 3 br / 1 ba | C7: 3 | D7: 1495 | E7: 53820
B8: bach | C8: 2 | D8: 1050 | E8: 25200
B9: Totals: | C9: =SUM(C5:C8) -> 20 | D9: =+SUMPRODUCT(C5:C8,D5:D8)/C9 -> 1257 | E9: =SUM(E5:E8) -> 301680
B11: First Year Operating Statement | H11: Financing Data
B12: Potential Rental Income | D12: =E9 -> 301680 | H12: Loan Interest Rate | I12: 0.044
B13: Total Other Income Laundry revenue | C13: 500 | D13: 5000 | H13: Loan Amortization (years) | I13: 30
B14: Potential Gross Income | D14: =SUM(D12:D13) -> 306680 | H14: LTV | I14: 0.7
B15: Vacancy & Credit Loss | C15: 0.02 | D15: =-C15*D14 -> -6133.6 | H15: DSCR | I15: 1.25
B16: Effective Gross Income | D16: =SUM(D14:D15) -> 300546.4 | H16: Loan Amount (LTV) | I16: =I4*I14 -> 2100000
B17: Property Taxes | D17: 26000 | H17: Loan Amount (DSCR) | I17: =IF(I12=0,0,IF(ISERROR(PV(I12/12,I13*12,-D24/I15/12)),0,PV(I12/12,I13*12,-D24/I15/12))) -> 2336698.365
B18: Insurance | D18: 13000 | H18: Maximum Loan Amount | I18: =MIN(I16,I17) -> 2100000
B19: Maintenance | D19: 24000 | H19: Initial Equity | I19: =I4-I18 -> 900000
B20: Management Fee | C20: 0.05 | D20: =C20*D16 -> 15027.32 | H20: Monthly Debt Service | I20: =IF(I18>0,PMT(I12/12,I13*12,-I18),0) -> 10515.97911
B21: Other Expenses | C21: Utilities | D21: 42000 | H21: Annual Debt Service | I21: =I20*12 -> 126191.7494
B22: CapEx Reserves | C22: 250 | D22: =C22*C9 -> 5000
B23: Total Expenses | D23: =SUM(D17:D22) -> 125027.32
B24: Net Operating Income | D24: =D16-D23 -> 175519.08
B25: Operating Margin | D25: 0
B26: Debt Service | D26: 126192
B27: Cash Flow Before Tax | D27: =D24-D26 -> 49327.08
B33: Inflation / Variable Rates
C34: Year 1 | D34: Year 2 | E34: Year 3 | F34: Year 4 | G34: Year 5 | H34: Year 6
B35: Vacancy | C35: =C15 -> 0.02 | D35: 0.08 | E35: 0.05 | F35: 0.05 | G35: 0.05 | H35: 0.05
B36: Potential Rental Income | C36: N/A | D36: 0.05 | E36: 0.02 | F36: 0.02 | G36: 0.02 | H36: 0.02
B37: Other Income | C37: N/A | D37: 0.03 | E37: 0.02 | F37: 0.02 | G37: 0.02 | H37: 0.02
B38: Operating Expenses | C38: N/A | D38: 0.02 | E38: 0.02 | F38: 0.02 | G38: 0.02 | H38: 0.02

Sheet Proforma
B1: Proforma
C3: Year 1 | D3: Year 2 | E3: Year 3 | F3: Year 4 | G3: Year 5 | H3: Year 6
B4: Potential Rental Income | C4: =Data!D12 -> 301680 | D4: =C4*(1+Data!D36) -> 316764 | E4: =D4*(1+Data!E36) -> 323099.28 | F4: =E4*(1+Data!F36) -> 329561.2656 | G4: =F4*(1+Data!G36) -> 336152.4909 | H4: =G4*(1+Data!H36) -> 342875.5407
B5: Total Other Income | C5: =Data!D13 -> 5000 | D5: =C5*(1+Data!D37) -> 5150 | E5: =D5*(1+Data!E37) -> 5253 | F5: =E5*(1+Data!F37) -> 5358.06 | G5: =F5*(1+Data!G37) -> 5465.2212 | H5: =G5*(1+Data!H37) -> 5574.525624
B6: Potential Gross Income | C6: =SUM(C4:C5) -> 306680 | D6: =SUM(D4:D5) -> 321914 | E6: 328352.28 | F6: 334919.3256 | G6: 341617.7121 | H6: 348450.0664
B7: Vacancy & Credit Loss | C7: =Data!D15 -> -6133.6 | D7: =-D6*Data!D35 -> -25753.12 | E7: =-E6*Data!E35 -> -16417.614 | F7: =-F6*Data!F35 -> -16745.96628 | G7: =-G6*Data!G35 -> -17080.88561 | H7: =-H6*Data!H35 -> -17422.50332
B8: Effective Gross Income | C8: =SUM(C6:C7) -> 300546.4 | D8: =SUM(D6:D7) -> 296160.88 | E8: 311934.666 | F8: 318173.3593 | G8: 324536.8265 | H8: 331027.563
B9: Operating Expenses | C9: =Data!D23 -> 125027.32 | D9: =C9*(1+Data!D38) -> 127527.8664 | E9: =D9*(1+Data!E38) -> 130078.4237 | F9: =E9*(1+Data!F38) -> 132679.9922 | G9: =F9*(1+Data!G38) -> 135333.592 | H9: =G9*(1+Data!H38) -> 138040.2639
B10: Net Operating Income | C10: =C8-C9 -> 175519.08 | D10: =D8-D9 -> 168633.0136 | E10: 181856.2423 | F10: 185493.3671 | G10: 189203.2345 | H10: 192987.2991
B11: Operating Margin | C11: =C10/C8 -> 0.5839999414 | D11: =D10/D8 -> 0.5693966523 | E11: 0.5829946527 | F11: 0.5829946527 | G11: 0.5829946527 | H11: 0.5829946527
B12: Debt Service | C12: =Data!$D$26 -> 126192 | D12: =Data!$D$26 -> 126192 | E12: =Data!$D$26 -> 126192 | F12: =Data!$D$26 -> 126192 | G12: =Data!$D$26 -> 126192
B13: Cash Flow Before Tax | C13: =C10-C12 -> 49327.08 | D13: =D10-D12 -> 42441.0136 | E13: 55664.24227 | F13: 59301.36712 | G13: 63011.23446
B17: Future Sale Value | G17: =G10/Data!I5 -> 3101692.368
B18: less: Cost of Sale | G18: =G17*Data!I6 -> 93050.77105
B19: less: Loan Balance | G19: =FV(Data!I12/12,5*12,Data!I20,-Data!I18) -> 1911399.436
B20: Net Sale Proceeds | G20: =G17-G18-G19 -> 1097242.161
